fUST/lending_fUST_20260522
["ID","MTS","AMOUNT","RATE_DAILY","PERIOD"]
[422805617,1779426647000,-67919.30014011,7.8e-05,2]
[422805626,1779426647000,-166.0,7.8e-05,2]
[422805624,1779426647000,-172.0,7.8e-05,2]
[422805623,1779426647000,-166.0,7.8e-05,2]
[422805619,1779426647000,-166.0,7.8e-05,2]
[422805620,1779426647000,-166.0,7.8e-05,2]
[422805621,1779426647000,-166.0,7.8e-05,2]
[422805622,1779426647000,-166.0,7.8e-05,2]
[422805625,1779426647000,-166.0,7.8e-05,2]
[422805631,1779426647000,-156.0,7.8e-05,2]
[422805629,1779426647000,-172.0,7.8e-05,2]
[422805630,1779426647000,-166.0,7.8e-05,2]
[422805628,1779426647000,-166.0,7.8e-05,2]
[422805638,1779426647000,-156.0,7.8e-05,2]
[422805640,1779426647000,-156.0,7.8e-05,2]
[422805634,1779426647000,-156.0,7.8e-05,2]
[422805639,1779426647000,-156.0,7.8e-05,2]
[422805636,1779426647000,-156.0,7.8e-05,2]
[422805633,1779426647000,-156.0,7.8e-05,2]
[422805641,1779426647000,-156.0,7.8e-05,2]
[422805668,1779426647000,-650.0,7.8e-05,2]
[422805677,1779426647000,-650.0,7.8e-05,2]
[422805663,1779426647000,-650.0,7.8e-05,2]
[422805692,1779426647000,-650.0,7.8e-05,2]
[422805688,1779426647000,-650.0,7.8e-05,2]
[422805685,1779426647000,-650.0,7.8e-05,2]
[422805691,1779426647000,-650.0,7.8e-05,2]
[422805690,1779426647000,-650.0,7.8e-05,2]
[422805689,1779426647000,-650.0,7.8e-05,2]
[422805707,1779426647000,-1390.29862852,7.803e-05,2]
[422805700,1779426647000,-169.39236129,7.8e-05,2]
[422805697,1779426647000,-167.0,7.8e-05,2]
[422805687,1779426647000,-650.0,7.8e-05,2]
[422805710,1779426647000,-69579.2200222,7.806e-05,2]
[422805709,1779426647000,-653.57523313,7.805e-05,2]
[422805698,1779426647000,-167.0,7.8e-05,2]
[422805701,1779426647000,-167.0,7.8e-05,2]
[422805704,1779426647000,-537.6845,7.801e-05,2]
[422805706,1779426647000,-251.574,7.802e-05,2]
[422805705,1779426647000,-1390.29862852,7.802e-05,2]
[422805703,1779426647000,-793.0,7.8e-05,2]
[422805708,1779426647000,-1390.29862852,7.805e-05,2]
[422805660,1779426647000,-650.0,7.8e-05,2]
[422805699,1779426647000,-167.0,7.8e-05,2]
[422805693,1779426647000,-775.57428312,7.8e-05,2]
[422805702,1779426647000,-1390.29862852,7.8e-05,2]
[422805695,1779426647000,-167.0,7.8e-05,2]
[422805665,1779426647000,-650.0,7.8e-05,2]
[422805656,1779426647000,-650.0,7.8e-05,2]
[422805664,1779426647000,-650.0,7.8e-05,2]
[422805666,1779426647000,-650.0,7.8e-05,2]
[422805671,1779426647000,-650.0,7.8e-05,2]
[422805658,1779426647000,-650.0,7.8e-05,2]
[422805681,1779426647000,-650.0,7.8e-05,2]
[422805686,1779426647000,-650.0,7.8e-05,2]
[422805680,1779426647000,-650.0,7.8e-05,2]
[422805670,1779426647000,-650.0,7.8e-05,2]
[422805682,1779426647000,-650.0,7.8e-05,2]
[422805675,1779426647000,-650.0,7.8e-05,2]
[422805696,1779426647000,-167.0,7.8e-05,2]
[422805672,1779426647000,-650.0,7.8e-05,2]
[422805694,1779426647000,-650.0,7.8e-05,2]
[422805684,1779426647000,-650.0,7.8e-05,2]
[422805683,1779426647000,-650.0,7.8e-05,2]
[422805673,1779426647000,-650.0,7.8e-05,2]
[422805678,1779426647000,-650.0,7.8e-05,2]
[422805679,1779426647000,-650.0,7.8e-05,2]
[422805676,1779426647000,-650.0,7.8e-05,2]
[422805674,1779426647000,-650.0,7.8e-05,2]
[422805711,1779426715000,547.0,0.00017808,120]
[422805712,1779426724000,1000.0,0.00017808,120]
[422805792,1779427832000,-300.0,6.805e-05,2]
[422805790,1779427832000,-300.0,6.805e-05,2]
[422805794,1779427832000,-300.0,6.805e-05,2]
[422805796,1779427832000,-500.0,6.806e-05,2]
[422805798,1779427832000,-500.0,6.806e-05,2]
[422805787,1779427832000,-1200.0,6.804e-05,2]
[422805783,1779427832000,-5000.0,6.408e-05,2]
[422805789,1779427832000,-300.0,6.805e-05,2]
[422805800,1779427832000,-45.04506964,6.806e-05,2]
[422805804,1779427832000,-265.48493036,6.806e-05,2]
[422805806,1779427832000,-139.23302464,6.994e-05,2]
[422805785,1779427832000,-394.92075313,6.63e-05,2]
[422805928,1779427838000,-294.91,7.622e-05,2]
[422805924,1779427838000,-500.0,7.416e-05,2]
[422805923,1779427838000,-300.0,6.994e-05,2]
[422805916,1779427838000,-300.0,6.994e-05,2]
[422805913,1779427838000,-300.0,6.994e-05,2]
[422805915,1779427838000,-300.0,6.994e-05,2]
[422805917,1779427838000,-300.0,6.994e-05,2]
[422805911,1779427838000,-300.0,6.994e-05,2]
[422805914,1779427838000,-300.0,6.994e-05,2]
[422805910,1779427838000,-300.0,6.994e-05,2]
[422805907,1779427838000,-394.92075313,6.519e-05,2]
[422805922,1779427838000,-300.0,6.994e-05,2]
[422805909,1779427838000,-160.76697536,6.994e-05,2]
[422805921,1779427838000,-300.0,6.994e-05,2]
[422805920,1779427838000,-300.0,6.994e-05,2]
[422805918,1779427838000,-300.0,6.994e-05,2]
[422805919,1779427838000,-300.0,6.994e-05,2]
[422805906,1779427838000,-5000.0,6.344e-05,2]
[422805925,1779427838000,-152.0,7.452e-05,7]
[422805912,1779427838000,-300.0,6.994e-05,2]
[422805931,1779427838000,-342.41698547,7.7e-05,2]
[422805937,1779427838000,-869.34731803,7.7e-05,2]
[422805933,1779427838000,-151.09173182,7.7e-05,2]
[422805927,1779427838000,-420.0,7.486e-05,2]
[422805950,1779427838000,-500.0,7.791e-05,2]
[422805943,1779427838000,-325.9848009,7.722e-05,2]
[422805942,1779427838000,-305.4516703,7.722e-05,2]
[422805940,1779427838000,-151.4607272,7.722e-05,2]
[422805945,1779427838000,-500.0,7.791e-05,2]
[422805941,1779427838000,-151.0,7.722e-05,2]
[422805944,1779427838000,-325.9848009,7.722e-05,2]
[422805946,1779427838000,-500.0,7.791e-05,2]
[422805939,1779427838000,-1111.29534248,7.7e-05,2]
[422805949,1779427838000,-500.0,7.791e-05,2]
[422805936,1779427838000,-704.81623331,7.7e-05,2]
[422805948,1779427838000,-500.0,7.791e-05,2]
[422805947,1779427838000,-500.0,7.791e-05,2]
[422805935,1779427838000,-327.67695191,7.7e-05,2]
[422805930,1779427838000,-319.53583992,7.7e-05,2]
[422805929,1779427838000,-215.75908378,7.7e-05,2]
[422805934,1779427838000,-152.83659854,7.7e-05,2]
[422805926,1779427838000,-1239.0,7.484e-05,2]
[422805938,1779427838000,-1081.95551472,7.7e-05,2]
[422805932,1779427838000,-360.31218415,7.7e-05,2]
[422805985,1779427839000,-500.0,7.791e-05,2]
[422805987,1779427839000,-500.0,7.791e-05,2]
[422805969,1779427839000,-500.0,7.791e-05,2]
[422805971,1779427839000,-500.0,7.791e-05,2]
[422805968,1779427839000,-500.0,7.791e-05,2]
[422805966,1779427839000,-500.0,7.791e-05,2]
[422805984,1779427839000,-403.89733702,7.791e-05,2]
[422805986,1779427839000,-500.0,7.791e-05,2]
[422805979,1779427839000,-500.0,7.791e-05,2]
[422805989,1779427839000,-865.38614692,7.797e-05,2]
[422805977,1779427839000,-500.0,7.791e-05,2]
[422805982,1779427839000,-500.0,7.791e-05,2]
[422805981,1779427839000,-500.0,7.791e-05,2]
[422805978,1779427839000,-500.0,7.791e-05,2]
[422805990,1779427839000,-865.38614692,7.797e-05,2]
[422805972,1779427839000,-500.0,7.791e-05,2]
[422805980,1779427839000,-500.0,7.791e-05,2]
[422805988,1779427839000,-500.0,7.791e-05,2]
[422805970,1779427839000,-500.0,7.791e-05,2]
[422805956,1779427839000,-500.0,7.791e-05,2]
[422805965,1779427839000,-640.05785078,7.791e-05,2]
[422805983,1779427839000,-500.0,7.791e-05,2]
[422805952,1779427839000,-225.01512028,7.791e-05,2]
[422805951,1779427839000,-156.77294673,7.791e-05,2]
[422805953,1779427839000,-500.0,7.791e-05,2]
[422805954,1779427839000,-500.0,7.791e-05,2]
[422805955,1779427839000,-500.0,7.791e-05,2]
[422805962,1779427839000,-500.0,7.791e-05,2]
[422805957,1779427839000,-500.0,7.791e-05,2]
[422805975,1779427839000,-500.0,7.791e-05,2]
[422805959,1779427839000,-500.0,7.791e-05,2]
[422805960,1779427839000,-500.0,7.791e-05,2]
[422805961,1779427839000,-500.0,7.791e-05,2]
[422805963,1779427839000,-500.0,7.791e-05,2]
[422805964,1779427839000,-500.0,7.791e-05,2]
[422805974,1779427839000,-500.0,7.791e-05,2]
[422805976,1779427839000,-500.0,7.791e-05,2]
[422805967,1779427839000,-500.0,7.791e-05,2]
[422805973,1779427839000,-500.0,7.791e-05,2]
[422805958,1779427839000,-500.0,7.791e-05,2]
[422805991,1779427839000,-865.38614692,7.797e-05,2]
[422806030,1779427839000,-3191.72976468,7.806e-05,2]
[422805993,1779427839000,-865.38614692,7.797e-05,2]
[422806016,1779427839000,-3494.44321544,7.8e-05,2]
[422806015,1779427839000,-1554.64051404,7.8e-05,2]
[422806018,1779427839000,-6204.1874193,7.8e-05,2]
[422806027,1779427839000,-241620.21289527,7.806e-05,2]
[422806028,1779427839000,-398.97496663,7.806e-05,2]
[422806019,1779427839000,-323.4452698,7.8e-05,2]
[422806020,1779427839000,-157.2723906,7.8e-05,2]
[422806021,1779427839000,-2155.341175,7.8e-05,2]
[422806009,1779427839000,-865.38614692,7.797e-05,2]
[422806023,1779427839000,-201.259,7.802e-05,2]
[422806026,1779427839000,-16617.56058801,7.806e-05,2]
[422806025,1779427839000,-166.0,7.803e-05,2]
[422806024,1779427839000,-166.0,7.803e-05,2]
[422806029,1779427839000,-23307.93680511,7.806e-05,2]
[422806034,1779427839000,-281.01403108,7.806e-05,2]
[422806032,1779427839000,-172803.44131463,7.806e-05,2]
[422806033,1779427839000,-84394.52536558,7.806e-05,2]
[422806031,1779427839000,-955315.85252914,7.806e-05,2]
[422805994,1779427839000,-865.38614692,7.797e-05,2]
[422806014,1779427839000,-388.66012851,7.8e-05,2]
[422806022,1779427839000,-417.69645034,7.801e-05,2]
[422806017,1779427839000,-681.9052132,7.8e-05,2]
[422806011,1779427839000,-100000.0,7.798e-05,2]
[422806002,1779427839000,-865.38614692,7.797e-05,2]
[422805997,1779427839000,-865.38614692,7.797e-05,2]
[422805996,1779427839000,-865.38614692,7.797e-05,2]
[422805992,1779427839000,-865.38614692,7.797e-05,2]
[422805998,1779427839000,-865.38614692,7.797e-05,2]
[422805999,1779427839000,-865.38614692,7.797e-05,2]
[422805995,1779427839000,-865.38614692,7.797e-05,2]
[422806001,1779427839000,-865.38614692,7.797e-05,2]
[422806003,1779427839000,-865.38614692,7.797e-05,2]
[422806004,1779427839000,-865.38614692,7.797e-05,2]
[422806006,1779427839000,-865.38614692,7.797e-05,2]
[422806005,1779427839000,-865.38614692,7.797e-05,2]
[422806007,1779427839000,-865.38614692,7.797e-05,2]
[422806008,1779427839000,-865.38614692,7.797e-05,2]
[422806010,1779427839000,-865.38614692,7.797e-05,2]
[422806013,1779427839000,-193.199937,7.8e-05,2]
[422806012,1779427839000,-2123.77482678,7.799e-05,2]
[422806000,1779427839000,-865.38614692,7.797e-05,2]
[422806072,1779427841000,-498.19580677,7.806e-05,2]
[422806266,1779427844000,-2535.75258541,7.806e-05,2]
[422806264,1779427844000,-36660.32530945,7.806e-05,2]
[422806265,1779427844000,-3197.03465272,7.806e-05,2]
[422806267,1779427844000,-4479.15198489,7.806e-05,2]
[422806270,1779427844000,-2060.3243339,7.806e-05,2]
[422806269,1779427844000,-568.02726802,7.806e-05,2]
[422806271,1779427844000,-361.0,7.806e-05,2]
[422806272,1779427844000,-31757.99228524,7.806e-05,2]
[422806268,1779427844000,-7685.13490409,7.806e-05,2]
[422806277,1779427847000,-18925.42894494,7.806e-05,2]
[422806276,1779427847000,-4058.12696594,7.806e-05,2]
[422806292,1779427873000,-1365.59530134,7.728e-05,2]
[422806312,1779428833000,1141.16,0.00017808,120]
[422806385,1779429032000,-152.0,7.453e-05,7]
[422806395,1779429032000,-675.0011946,7.797e-05,2]
[422806380,1779429032000,-456.643312,6.872e-05,2]
[422806378,1779429032000,-151.0,6.872e-05,2]
[422806374,1779429032000,-4312.31394054,6.803e-05,2]
[422806376,1779429032000,-319.9471867,6.872e-05,2]
[422806397,1779429032000,-675.0011946,7.797e-05,2]
[422806367,1779429032000,-687.68605946,6.803e-05,2]
[422806382,1779429032000,-389.68365323,7.342e-05,2]
[422806393,1779429032000,-675.0011946,7.797e-05,2]
[422806408,1779429032000,-645.81273363,7.797e-05,2]
[422806389,1779429032000,-151.0,7.693e-05,2]
[422806415,1779429032000,-650.04697371,7.797e-05,2]
[422806412,1779429032000,-29.18846097,7.797e-05,2]
[422806403,1779429032000,-675.0011946,7.797e-05,2]
[422806406,1779429032000,-675.0011946,7.797e-05,2]
[422806384,1779429032000,-500.0,7.416e-05,2]
[422806401,1779429032000,-48.62233087,7.797e-05,2]
[422806391,1779429032000,-300.0,7.797e-05,2]
[422806404,1779429032000,-675.0011946,7.797e-05,2]
[422806399,1779429032000,-626.37886373,7.797e-05,2]
[422806387,1779429032000,-611.0,7.692e-05,2]
[422806484,1779429038000,-675.0011946,7.797e-05,2]
[422806483,1779429038000,-24.95422089,7.797e-05,2]
[422806485,1779429038000,-675.0011946,7.797e-05,2]
[422806488,1779429038000,-675.0011946,7.797e-05,2]
[422806490,1779429038000,-500.0,7.797e-05,2]
[422806489,1779429038000,-500.0,7.797e-05,2]
[422806486,1779429038000,-675.0011946,7.797e-05,2]
[422806492,1779429038000,-675.0011946,7.797e-05,2]
[422806491,1779429038000,-293.3397612,7.797e-05,2]
[422806494,1779429038000,-500.0,7.797e-05,2]
[422806493,1779429038000,-469.44612448,7.797e-05,2]
[422806495,1779429038000,-675.0011946,7.797e-05,2]
[422806496,1779429038000,-675.0011946,7.797e-05,2]
[422806497,1779429038000,-675.0011946,7.797e-05,2]
[422806487,1779429038000,-675.0011946,7.797e-05,2]
[422806499,1779429039000,-675.0011946,7.797e-05,2]
[422806498,1779429039000,-675.0011946,7.797e-05,2]
[422806501,1779429039000,-100000.0,7.798e-05,2]
[422806503,1779429039000,-161.007,7.803e-05,2]
[422806500,1779429039000,-675.0011946,7.797e-05,2]
[422806505,1779429039000,-1699.0198614,7.803e-05,2]
[422806506,1779429039000,-87126.18006954,7.806e-05,2]
[422806504,1779429039000,-832.6490576,7.803e-05,2]
[422806507,1779429039000,-4620.18080527,7.806e-05,2]
[422806510,1779429039000,-3337.73803097,7.806e-05,2]
[422806508,1779429039000,-172803.44131463,7.806e-05,2]
[422806509,1779429039000,-10351.29328183,7.806e-05,2]
[422806502,1779429039000,-170.4763033,7.803e-05,2]
[422806523,1779429041000,-2628.39999999,7.806e-05,2]
[422806524,1779429041000,-1346.44188268,7.806e-05,2]
[422806525,1779429041000,-726.24112291,7.806e-05,2]
[422806582,1779429044000,-3678.4336492,7.728e-05,2]
[422806595,1779429047000,-688.92404718,7.728e-05,2]
[422806594,1779429047000,-620.66708974,7.728e-05,2]
[422806659,1779430232000,-538.94250072,6.513e-05,2]
[422806654,1779430232000,-282.45967786,6.513e-05,2]
[422806651,1779430232000,-3517.54032214,6.379e-05,2]
[422806653,1779430232000,-1200.0,6.512e-05,2]
[422806648,1779430232000,-400.10329436,6.379e-05,2]
[422806763,1779430238000,-2043.08604592,6.513e-05,2]
[422806786,1779430246000,-778.70111579,6.513e-05,2]
[422806787,1779430246000,-1356.81065971,6.513e-05,2]
[422806789,1779430246000,-300.0,6.778e-05,2]
[422806791,1779430246000,-300.0,6.778e-05,2]
[422806790,1779430246000,-300.0,6.778e-05,2]
[422806788,1779430246000,-381.88998017,6.663e-05,2]
[422806792,1779430246000,-34.17702537,6.778e-05,2]
[422806828,1779431432000,-300.0,6.916e-05,2]
[422806832,1779431432000,-300.0,6.916e-05,2]
[422806825,1779431432000,-300.0,6.916e-05,2]
[422806826,1779431432000,-300.0,6.916e-05,2]
[422806823,1779431432000,-300.0,6.915e-05,2]
[422806822,1779431432000,-456.643312,6.863e-05,2]
[422806820,1779431432000,-374.25218056,6.484e-05,2]
[422806821,1779431432000,-178.12456162,6.604e-05,2]
[422806818,1779431432000,-5000.0,6.318e-05,2]
[422806819,1779431432000,-228.23999999,6.382e-05,2]
[422806829,1779431432000,-300.0,6.916e-05,2]
[422806824,1779431432000,-269.0,6.915e-05,2]
[422806830,1779431432000,-300.0,6.916e-05,2]
[422806843,1779431432000,-300.0,6.916e-05,2]
[422806831,1779431432000,-300.0,6.916e-05,2]
[422806845,1779431432000,-600.0,7.053e-05,2]
[422806853,1779431432000,-16.23578151,7.607e-05,2]
[422806851,1779431432000,-152.0,7.453e-05,7]
[422806827,1779431432000,-300.0,6.916e-05,2]
[422806849,1779431432000,-219.03844394,7.414e-05,2]
[422806841,1779431432000,-300.0,6.916e-05,2]
[422806847,1779431432000,-280.96155606,7.414e-05,2]
[422806837,1779431432000,-300.0,6.916e-05,2]
[422806833,1779431432000,-300.0,6.916e-05,2]
[422806835,1779431432000,-300.0,6.916e-05,2]
[422806834,1779431432000,-300.0,6.916e-05,2]
[422806839,1779431432000,-300.0,6.916e-05,2]
[422806897,1779431438000,-2497.9471729,7.754e-05,2]
[422806901,1779431438000,-603.90448356,7.797e-05,2]
[422806903,1779431438000,-603.90448356,7.797e-05,2]
[422806902,1779431438000,-603.90448356,7.797e-05,2]
[422806907,1779431438000,-603.90448356,7.797e-05,2]
[422806906,1779431438000,-603.90448356,7.797e-05,2]
[422806905,1779431438000,-603.90448356,7.797e-05,2]
[422806908,1779431438000,-603.90448356,7.797e-05,2]
[422806898,1779431438000,-1693.2296356,7.754e-05,2]
[422806904,1779431438000,-603.90448356,7.797e-05,2]
[422806899,1779431438000,-720.0,7.759e-05,2]
[422806891,1779431438000,-591.43958456,7.7e-05,2]
[422806895,1779431438000,-152.0,7.729e-05,2]
[422806893,1779431438000,-739.17156029,7.7e-05,2]
[422806894,1779431438000,-152.0,7.703e-05,2]
[422806890,1779431438000,-487.06387545,7.7e-05,2]
[422806892,1779431438000,-716.53049065,7.7e-05,2]
[422806888,1779431438000,-151.6832879,7.678e-05,2]
[422806886,1779431438000,-403.76421849,7.607e-05,2]
[422806889,1779431438000,-257.59726025,7.7e-05,2]
[422806887,1779431438000,-151.0,7.678e-05,2]
[422806911,1779431438000,-224.3767145,7.797e-05,2]
[422806896,1779431438000,-152.0,7.738e-05,2]
[422806909,1779431438000,-506.33994031,7.797e-05,2]
[422806900,1779431438000,-511.4289099,7.787e-05,2]
[422806915,1779431438000,-603.90448356,7.797e-05,2]
[422806910,1779431438000,-500.0,7.797e-05,2]
[422806934,1779431438000,-4681.54622423,7.798e-05,2]
[422806932,1779431438000,-603.90448356,7.797e-05,2]
[422806933,1779431438000,-50256.83002012,7.798e-05,2]
[422806930,1779431438000,-603.90448356,7.797e-05,2]
[422806927,1779431438000,-500.0,7.797e-05,2]
[422806926,1779431438000,-500.0,7.797e-05,2]
[422806928,1779431438000,-500.0,7.797e-05,2]
[422806931,1779431438000,-603.90448356,7.797e-05,2]
[422806925,1779431438000,-603.90448356,7.797e-05,2]
[422806923,1779431438000,-500.0,7.797e-05,2]
[422806924,1779431438000,-603.90448356,7.797e-05,2]
[422806922,1779431438000,-500.0,7.797e-05,2]
[422806912,1779431438000,-500.0,7.797e-05,2]
[422806913,1779431438000,-500.0,7.797e-05,2]
[422806929,1779431438000,-603.90448356,7.797e-05,2]
[422806917,1779431438000,-500.0,7.797e-05,2]
[422806916,1779431438000,-220.29494707,7.797e-05,2]
[422806914,1779431438000,-500.0,7.797e-05,2]
[422806935,1779431438000,-13602.84797964,7.798e-05,2]
[422806919,1779431438000,-500.0,7.797e-05,2]
[422806920,1779431438000,-500.0,7.797e-05,2]
[422806921,1779431438000,-603.90448356,7.797e-05,2]
[422806918,1779431438000,-603.90448356,7.797e-05,2]
[422806938,1779431440000,-3821.99177049,7.72e-05,2]
[422806971,1779431443000,-24415.15830242,7.798e-05,2]
[422806967,1779431443000,-5313.96269185,7.798e-05,2]
[422806969,1779431443000,-953.87845248,7.798e-05,2]
[422806966,1779431443000,-1178.00822951,7.72e-05,2]
[422806968,1779431443000,-304.0,7.798e-05,2]
[422806972,1779431443000,-161.007,7.801e-05,2]
[422806970,1779431443000,-471.77632926,7.798e-05,2]
[422806975,1779431443000,-45849.84130508,7.806e-05,2]
[422806977,1779431443000,-673.32755196,7.806e-05,2]
[422806976,1779431443000,-10301.96296831,7.806e-05,2]
[422806979,1779431443000,-6585.51744111,7.806e-05,2]
[422806973,1779431443000,-1359.21588912,7.803e-05,2]
[422806978,1779431443000,-729.67770619,7.806e-05,2]
[422806974,1779431443000,-4351.57236388,7.806e-05,2]
[422807013,1779431447000,-152.0,7.452e-05,7]
[422807015,1779431447000,-232463.28879086,7.806e-05,2]
[422807016,1779431447000,-751.50978022,7.806e-05,2]
[422807012,1779431447000,-152.0,7.452e-05,7]
[422807017,1779431447000,-28646.30297317,7.806e-05,2]
[422807020,1779431447000,-1093.92499483,7.806e-05,2]
[422807019,1779431447000,-6020.43921358,7.806e-05,2]
[422807014,1779431447000,-13021.58074445,7.806e-05,2]
[422807021,1779431447000,-3008.28133464,7.806e-05,2]
[422807022,1779431473000,-500.0,7.797e-05,2]
[422807439,1779432638000,-152.0,7.775e-05,2]
[422807409,1779432638000,-459.4282226,7.675e-05,2]
[422807404,1779432638000,-203.105674,7.44e-05,2]
[422807407,1779432638000,-238.0,7.674e-05,2]
[422807435,1779432638000,-1413.0,7.703e-05,2]
[422807437,1779432638000,-152.0,7.754e-05,2]
[422807423,1779432638000,-300.0,7.699e-05,2]
[422807441,1779432638000,-500.0,7.796e-05,2]
[422807402,1779432638000,-500.0,7.416e-05,2]
[422807421,1779432638000,-300.0,7.699e-05,2]
[422807405,1779432638000,-152.0,7.454e-05,7]
[422807384,1779432638000,-386.26629503,6.588e-05,2]
[422807415,1779432638000,-1274.66067711,7.698e-05,2]
[422807413,1779432638000,-195.6357194,7.679e-05,2]
[422807417,1779432638000,-1698725.33932289,7.698e-05,2]
[422807411,1779432638000,-431.1927882,7.675e-05,2]
[422807400,1779432638000,-19.21347211,6.721e-05,2]
[422807382,1779432638000,-842.53372828,6.456e-05,2]
[422807378,1779432638000,-700.0,6.456e-05,2]
[422807380,1779432638000,-3457.46627172,6.456e-05,2]
[422807385,1779432638000,-280.78652789,6.721e-05,2]
[422807443,1779432638000,-500.0,7.796e-05,2]
[422807419,1779432638000,-300.0,7.699e-05,2]
[422807425,1779432638000,-500.0,7.7e-05,2]
[422807459,1779432638000,-500.0,7.796e-05,2]
[422807431,1779432638000,-2203.0,7.703e-05,2]
[422807481,1779432638000,-500.0,7.796e-05,2]
[422807479,1779432638000,-500.0,7.796e-05,2]
[422807427,1779432638000,-500.0,7.7e-05,2]
[422807477,1779432638000,-500.0,7.796e-05,2]
[422807472,1779432638000,-285.44419264,7.796e-05,2]
[422807474,1779432638000,-179.44746599,7.796e-05,2]
[422807470,1779432638000,-500.0,7.796e-05,2]
[422807468,1779432638000,-500.0,7.796e-05,2]
[422807454,1779432638000,-500.0,7.796e-05,2]
[422807457,1779432638000,-500.0,7.796e-05,2]
[422807466,1779432638000,-370.08141508,7.796e-05,2]
[422807475,1779432638000,-500.0,7.796e-05,2]
[422807465,1779432638000,-500.0,7.796e-05,2]
[422807456,1779432638000,-500.0,7.796e-05,2]
[422807446,1779432638000,-500.0,7.796e-05,2]
[422807445,1779432638000,-500.0,7.796e-05,2]
[422807433,1779432638000,-648.729,7.703e-05,2]
[422807429,1779432638000,-529.5384418,7.7e-05,2]
[422807450,1779432638000,-500.0,7.796e-05,2]
[422807461,1779432638000,-500.0,7.796e-05,2]
[422807452,1779432638000,-500.0,7.796e-05,2]
[422807463,1779432638000,-500.0,7.796e-05,2]
[422807448,1779432638000,-500.0,7.796e-05,2]
[422807501,1779432639000,-500.0,7.796e-05,2]
[422807520,1779432639000,-576.85032391,7.799e-05,2]
[422807516,1779432639000,-576.85032391,7.799e-05,2]
[422807509,1779432639000,-576.85032391,7.799e-05,2]
[422807507,1779432639000,-576.85032391,7.799e-05,2]
[422807505,1779432639000,-576.85032391,7.799e-05,2]
[422807522,1779432639000,-576.85032391,7.799e-05,2]
[422807500,1779432639000,-500.0,7.796e-05,2]
[422807488,1779432639000,-500.0,7.796e-05,2]
[422807498,1779432639000,-182.14622293,7.796e-05,2]
[422807496,1779432639000,-500.0,7.796e-05,2]
[422807485,1779432639000,-500.0,7.796e-05,2]
[422807494,1779432639000,-500.0,7.796e-05,2]
[422807486,1779432639000,-577.00245174,7.796e-05,2]
[422807483,1779432639000,-500.0,7.796e-05,2]
[422807490,1779432639000,-500.0,7.796e-05,2]
[422807492,1779432639000,-500.0,7.796e-05,2]
[422807511,1779432639000,-576.85032391,7.799e-05,2]
[422807503,1779432639000,-1657.2084574,7.799e-05,2]
[422807515,1779432639000,-576.85032391,7.799e-05,2]
[422807524,1779432639000,-576.85032391,7.799e-05,2]
[422807558,1779432639000,-473.74218606,7.806e-05,2]
[422807555,1779432639000,-388451.30660837,7.806e-05,2]
[422807553,1779432639000,-1657.2084574,7.804e-05,2]
[422807551,1779432639000,-367.84144535,7.803e-05,2]
[422807549,1779432639000,-1657.2084574,7.803e-05,2]
[422807547,1779432639000,-346.4132359,7.802e-05,2]
[422807543,1779432639000,-1657.2084574,7.801e-05,2]
[422807541,1779432639000,-253230.09831719,7.8e-05,2]
[422807539,1779432639000,-576.85032391,7.799e-05,2]
[422807513,1779432639000,-576.85032391,7.799e-05,2]
[422807535,1779432639000,-576.85032391,7.799e-05,2]
[422807526,1779432639000,-576.85032391,7.799e-05,2]
[422807537,1779432639000,-576.85032391,7.799e-05,2]
[422807530,1779432639000,-576.85032391,7.799e-05,2]
[422807518,1779432639000,-576.85032391,7.799e-05,2]
[422807533,1779432639000,-576.85032391,7.799e-05,2]
[422807545,1779432639000,-173.231,7.801e-05,2]
[422807531,1779432639000,-576.85032391,7.799e-05,2]
[422807528,1779432639000,-576.85032391,7.799e-05,2]
[422807736,1779432640000,-6912.46689333,7.806e-05,2]
[422807737,1779432641000,-10929.50645428,7.806e-05,2]
[422807762,1779432650000,-1440.00627747,7.806e-05,2]
[422807761,1779432650000,-6982.77770431,7.806e-05,2]
[422807758,1779432650000,-22291.35696604,7.806e-05,2]
[422807756,1779432650000,-527.37060269,7.806e-05,2]
[422807757,1779432650000,-295.76301192,7.806e-05,2]
[422807754,1779432650000,-3576.91254535,7.806e-05,2]
[422807775,1779433273000,-426.74494556,6.566e-05,2]
[422807809,1779433832000,-417.15766414,6.184e-05,2]
[422808078,1779433843000,-5000.0,6.284e-05,2]
[422808080,1779433843000,-390.3049925,6.575e-05,2]
[422808079,1779433843000,-162.748261,6.348e-05,2]
[422808077,1779433843000,-17846.22268802,6.184e-05,2]
[422808095,1779433844000,-393.94446733,7.496e-05,2]